bitfinex/quotes_SOLUSD_20250125
["timestamp","ask_amount","ask_price","bid_price","bid_amount"]
[1737789167280,0.40523278,246.84,246.81,0.03]
[1737789167905,1.40523278,246.84,246.81,0.03]
[1737789168290,20.0,246.82,246.81,0.03]
[1737789171110,1.0,246.83,246.81,0.03]
[1737789171293,0.40523278,246.82,246.81,0.03]
[1737789172310,20.0,246.83,246.81,0.03]
[1737789172513,20.40523278,246.83,246.81,0.03]
[1737789173112,0.40523278,246.83,246.81,0.03]
[1737789173325,20.40523278,246.83,246.81,0.03]
[1737789174615,0.40523278,246.83,246.81,0.03]
[1737789174814,0.40523278,246.85,246.81,0.03]
[1737789175015,109.4,246.84,246.81,0.03]
[1737789175219,20.0,246.82,246.81,0.03]
[1737789176200,109.4,246.84,246.81,0.03]
[1737789176590,20.0,246.82,246.81,0.03]
[1737789176812,109.4,246.84,246.81,0.03]
[1737789181724,109.463,246.84,246.81,0.03]
[1737789182625,191.20523278,246.83,246.81,0.03]
[1737789182918,190.8,246.83,246.81,0.03]
[1737789183093,0.40523278,246.82,246.81,0.03]
[1737789202062,25.18211678,246.82,246.81,0.03]
[1737789203347,24.18211678,246.82,246.81,0.03]
[1737789204967,24.18211678,246.82,246.81,0.03]
[1737789206650,25.18211678,246.82,246.81,0.03]
[1737789206855,26.80329778,246.82,246.81,0.03]
[1737789211549,25.80329778,246.82,246.81,0.03]
[1737789211755,26.80329778,246.82,246.81,0.03]
[1737789212964,25.80329778,246.82,246.81,0.03]
[1737789214451,20.0,246.78,246.73,0.03]
[1737789214642,0.40523278,246.77,246.73,0.03]
[1737789215247,20.0,246.74,246.73,0.03]
[1737789215449,22.9,246.74,246.73,0.03]
[1737789215669,20.0,246.74,246.73,0.03]
[1737789215969,2.9,246.75,246.73,0.03]
[1737789217359,2.9,246.76,246.73,0.03]
[1737789217677,20.0,246.74,246.73,0.03]
[1737789217874,2.9,246.76,246.73,0.03]
[1737789218190,109.4,246.78,246.73,0.03]
[1737789219675,109.4,246.78,246.74,1.642]
[1737789220979,109.4,246.83,246.75,23.776884]
[1737789221781,109.4,246.83,246.76,4.0525]
[1737789222088,190.8,246.83,246.76,4.0525]
[1737789224575,190.8,246.83,246.75,23.776884]
[1737789225080,190.8,246.83,246.74,1.642]
[1737789225284,0.40523278,246.82,246.74,1.642]
[1737789225973,190.8,246.81,246.74,1.642]
[1737789232187,190.8,246.8,246.74,1.642]
[1737789234091,190.8,246.8,246.74,1.672]
[1737789234791,20.0,246.76,246.74,1.672]
[1737789234989,190.8,246.75,246.74,0.03]
[1737789237899,81.4,246.75,246.74,0.03]
[1737789243806,109.4,246.79,246.74,0.03]
[1737789244404,81.4,246.78,246.74,0.03]
[1737789245908,81.4,246.78,246.74,4.0828]
[1737789246486,81.4,246.78,246.75,23.776884]
[1737789247412,81.4,246.78,246.76,4.0525]
[1737789249987,0.063,246.81,246.77,25.335684]
[1737789250194,0.063,246.81,246.79,23.776884]
[1737789251529,0.063,246.81,246.77,1.5588]
[1737789251816,0.063,246.81,246.77,5.611]
[1737789253610,0.063,246.81,246.78,23.776884]
[1737789253846,0.063,246.81,246.79,4.052]
[1737789255120,0.063,246.81,246.78,23.776884]
[1737789256621,0.063,246.81,246.77,1.5588]
[1737789257518,0.063,246.81,246.74,0.03]
[1737789258909,190.8,246.8,246.74,0.03]
[1737789259111,190.8,246.79,246.74,0.03]
[1737789259323,0.40523278,246.78,246.74,0.03]
[1737789264116,20.0,246.75,246.74,0.03]
[1737789264317,0.40523278,246.76,246.74,0.03]
[1737789264520,24.45703278,246.8,246.74,0.03]
[1737789264719,20.0,246.76,246.74,0.03]
[1737789266234,0.40523278,246.75,246.74,0.03]
[1737789267137,0.40523278,246.77,246.74,0.03]
[1737789268110,0.40523278,246.79,246.74,0.03]
[1737789269436,0.063,246.81,246.74,0.03]
[1737789269641,190.8,246.8,246.74,0.03]
[1737789272133,81.4,246.79,246.74,0.03]
[1737789272509,81.4,246.79,246.75,23.776884]
[1737789272950,81.4,246.79,246.77,23.776884]
[1737789273151,0.063,246.81,246.77,23.776884]
[1737789273826,0.063,246.81,246.78,4.0521]
[1737789275755,0.063,246.81,246.79,27.828784]
[1737789278040,0.063,246.81,246.8,24.776884]
[1737789278365,0.063,246.84,246.83,20.0]
[1737789278563,0.063,246.84,246.82,23.776884]
[1737789279664,0.063,246.84,246.8,1.5708]
[1737789279961,0.063,246.84,246.82,4.0514]
[1737789288481,0.063,246.84,246.83,23.776884]
[1737789299891,190.8,246.83,246.81,0.03]
[1737789300067,191.20523278,246.82,246.81,0.03]
[1737789300267,20.0,246.78,246.74,0.03]
[1737789300481,0.40523278,246.77,246.74,0.03]
[1737789303269,190.8,246.76,246.74,0.03]
[1737789303470,20.0,246.79,246.74,0.03]
[1737789303774,0.40523278,246.78,246.74,0.03]
[1737789305095,20.0,246.79,246.74,0.03]
[1737789305901,0.40523278,246.78,246.74,0.03]
[1737789309198,190.8,246.77,246.74,0.03]
[1737789309500,0.40523278,246.76,246.74,0.03]
[1737789314494,109.4,246.76,246.74,0.03]
[1737789324390,109.2418716,246.76,246.74,0.03]
[1737789327826,0.063,246.84,246.78,20.0]
[1737789328424,0.063,246.84,246.79,23.776884]
[1737789329008,0.063,246.84,246.79,10.1297]
[1737789331632,0.063,246.84,246.77,23.776884]
[1737789333025,81.4,246.83,246.78,4.0521]
[1737789335108,81.4,246.83,246.8,20.0]
[1737789336903,81.4,246.83,246.81,4.0516]
[1737789338939,81.4,246.82,246.81,4.0516]
[1737789341517,81.4,246.82,246.81,24.0516]
[1737789342231,0.063,246.84,246.76,4.0525]
[1737789342533,4.1142,246.84,246.75,0.03]
[1737789342704,0.40523278,246.83,246.75,0.03]
[1737789343808,0.46823278,246.84,246.75,0.03]
[1737789345506,20.0,246.83,246.75,0.03]
[1737789345725,0.40523278,246.82,246.75,0.03]
[1737789347939,190.6,246.81,246.75,0.03]
[1737789348146,0.40523278,246.8,246.75,0.03]
[1737789350843,190.6,246.79,246.75,0.03]
[1737789351047,191.00523278,246.78,246.75,0.03]
[1737789351257,190.6,246.78,246.75,0.03]
[1737789351424,0.40523278,246.77,246.75,0.03]
[1737789352724,190.6,246.78,246.75,0.03]
[1737789356728,190.6,246.77,246.75,0.03]
[1737789359341,0.063,246.84,246.77,20.0]
[1737789361641,0.063,246.84,246.78,4.0521]
[1737789362455,0.063,246.84,246.78,14.1825]
[1737789362748,0.063,246.82,246.79,23.776884]
[1737789362957,0.063,246.82,246.81,20.0]
[1737789364159,0.063,246.82,246.81,24.0516]
[1737789365053,0.063,246.82,246.81,4.0516]
[1737789366246,0.063,246.82,246.79,4.0519]
[1737789367865,0.063,246.82,246.76,1.5434]
[1737789367866,0.063,246.82,246.77,4.0522]
[1737789368038,0.063,246.82,246.77,24.0522]
[1737789368668,170.2,246.81,246.77,24.0522]
[1737789369161,170.2,246.8,246.75,0.03]
[1737789374578,81.4,246.79,246.75,0.03]
[1737789374758,81.4,246.78,246.75,0.03]
[1737789374957,81.4,246.78,246.76,20.0]
[1737789375973,81.4,246.78,246.77,4.0523]
[1737789378366,81.4,246.78,246.75,0.03]
[1737789378367,81.4,246.78,246.75,4.0826]
[1737789379854,81.4,246.78,246.75,0.03]
[1737789380565,81.4,246.77,246.75,0.03]
[1737789381085,81.4,246.8,246.75,37.991184]
[1737789383076,81.4,246.8,246.78,20.0]
[1737789385382,0.063,246.82,246.79,24.052]
[1737789385866,0.063,246.82,246.8,20.0]
[1737789386562,0.063,246.82,246.79,4.052]
[1737789388178,0.063,246.82,246.77,23.776884]
[1737789388179,81.4,246.81,246.75,0.03]
[1737789388379,170.60523278,246.8,246.75,0.03]
[1737789388676,170.2,246.8,246.75,0.03]
[1737789390890,170.263,246.8,246.75,0.03]
[1737789391983,0.40523278,246.79,246.75,0.03]
[1737789392469,170.2,246.78,246.75,0.03]
[1737789392983,170.2,246.77,246.75,0.03]
[1737789393166,24.776884,246.75,246.57,4.0556]
[1737789393482,173.1,246.74,246.6,20.0]
[1737789393781,173.1,246.74,246.64,20.0]
[1737789394081,173.1,246.74,246.61,23.776884]
[1737789394082,88.8,246.77,246.72,20.0]
[1737789394283,81.4,246.78,246.72,21.0]
[1737789394673,81.4,246.78,246.72,20.0]
[1737789394984,81.4,246.78,246.73,24.053]
[1737789396491,81.4,246.78,246.73,4.053]
[1737789397892,81.4,246.78,246.74,20.0]
[1737789399163,81.4,246.78,246.75,4.0526]
[1737789403902,81.463,246.78,246.75,4.0526]
[1737789404190,0.063,246.78,246.76,23.776884]
[1737789406288,0.063,246.78,246.77,27.829184]
[1737789408194,0.063,246.78,246.75,4.0525]
[1737789408384,0.063,246.78,246.73,4.0829]
[1737789409205,0.063,246.78,246.74,23.776884]
[1737789410203,81.463,246.78,246.75,4.0526]
[1737789411979,81.463,246.78,246.76,23.776884]
[1737789413893,81.463,246.78,246.74,20.0]
[1737789414093,81.463,246.78,246.73,0.03]
[1737789415001,81.463,246.78,246.73,23.806884]
[1737789416901,81.463,246.78,246.73,0.03]
[1737789417090,170.2,246.77,246.73,0.03]
[1737789422179,170.2,246.76,246.73,0.03]
[1737789423210,170.2,246.75,246.73,0.03]
[1737789423508,170.2,246.74,246.73,0.03]
[1737789424890,1.0,246.77,246.73,0.03]
[1737789425093,0.40523278,246.76,246.73,0.03]
[1737789426518,20.0,246.74,246.73,0.03]
[1737789426814,23.00043278,246.74,246.73,0.03]
[1737789427204,7.05323278,246.74,246.73,0.03]
[1737789427390,3.00043278,246.74,246.73,0.03]
[1737789427593,4.90043278,246.74,246.73,0.03]
[1737789427821,5.90043278,246.74,246.73,0.03]
[1737789428583,4.90043278,246.74,246.73,0.03]
[1737789428790,25.90043278,246.74,246.73,0.03]
[1737789428988,24.90043278,246.74,246.73,0.03]
[1737789429794,4.90043278,246.74,246.73,0.03]
[1737789430291,24.90043278,246.74,246.73,0.03]
[1737789430500,4.90043278,246.74,246.73,0.03]
[1737789430819,24.90043278,246.74,246.73,0.03]
[1737789430995,4.90043278,246.74,246.73,0.03]
[1737789432518,24.90043278,246.74,246.73,0.03]
[1737789433094,2.00043278,246.74,246.73,0.03]
[1737789433510,22.00043278,246.74,246.73,0.03]
[1737789434224,2.00043278,246.74,246.73,0.03]
[1737789435412,22.00043278,246.74,246.73,0.03]
[1737789435913,23.00043278,246.74,246.73,0.03]
[1737789438011,35.15043278,246.74,246.73,0.03]
[1737789438220,23.00043278,246.74,246.73,0.03]
[1737789438520,1.0,246.67,246.52,4.0564]
[1737789438713,170.60523278,246.66,246.52,4.0564]
[1737789439022,170.60523278,246.66,246.54,20.0]
[1737789439023,170.2,246.66,246.54,20.0]
[1737789439209,20.0,246.61,246.45,14.2014]
[1737789439407,174.2552,246.6,246.45,10.1438]
[1737789439607,1.40523278,246.59,246.45,10.1438]
[1737789440127,0.40523278,246.59,246.43,4.0579]
[1737789440517,0.40523278,246.59,246.47,23.776884]
[1737789440914,170.2,246.58,246.51,23.776884]
[1737789441226,2.9,246.61,246.54,20.0]
[1737789441227,170.2,246.57,246.54,20.0]
[1737789441429,88.8,246.6,246.55,47.832784]
[1737789442011,85.16303864,246.6,246.55,57.972684]
[1737789443595,85.16303864,246.6,246.55,4.0559]
[1737789443808,85.16303864,246.6,246.56,23.776884]
[1737789443994,2.9,246.61,246.56,23.776884]
[1737789444918,163.26303864,246.67,246.58,20.0]
[1737789445126,163.26303864,246.66,246.58,20.0]
[1737789445822,163.26303864,246.66,246.59,4.0553]
[1737789448822,163.26303864,246.65,246.59,4.0553]
[1737789450510,81.4,246.64,246.6,23.776884]
[1737789452607,81.4,246.64,246.63,43.776884]
[1737789452926,81.4,246.68,246.63,43.776884]
[1737789454038,81.4,246.68,246.64,27.831284]
[1737789454233,81.4,246.68,246.66,23.776884]
[1737789455323,81.463,246.68,246.67,27.830784]
[1737789458939,81.463,246.68,246.67,24.0539]
[1737789460342,81.463,246.68,246.67,4.0539]
[1737789460730,0.063,246.68,246.67,4.0539]
[1737789466252,0.063,246.68,246.67,27.830784]
[1737789467049,0.063,246.68,246.67,4.0539]
[1737789468255,0.063,246.68,246.65,23.776884]
[1737789469564,0.063,246.68,246.64,20.0]
[1737789470465,0.063,246.68,246.65,4.0543]
[1737789472066,163.26303864,246.67,246.65,4.0543]
[1737789472367,163.26303864,246.66,246.6,0.03]
[1737789472653,163.26303864,246.65,246.6,0.03]
[1737789472856,0.40523278,246.64,246.6,0.03]
[1737789474333,163.26303864,246.65,246.6,0.03]
[1737789475553,163.26303864,246.64,246.6,0.03]
[1737789477761,81.4,246.63,246.6,0.03]
[1737789479684,81.4,246.63,246.62,20.0]
[1737789481665,81.4,246.63,246.6,0.03]
[1737789481863,163.26303864,246.62,246.6,0.03]
[1737789482845,81.4,246.62,246.6,0.03]
[1737789485665,163.26303864,246.67,246.6,0.03]
[1737789486048,81.4,246.66,246.62,23.776884]
[1737789487370,81.4,246.66,246.61,37.969184]
[1737789488662,81.4,246.66,246.65,23.776884]
[1737789489873,81.4,246.66,246.65,27.831184]
[1737789490174,163.26303864,246.65,246.6,4.085]
[1737789490847,163.26303864,246.64,246.6,4.085]
[1737789491560,163.26303864,246.64,246.6,0.03]
[1737789495255,163.26303864,246.64,246.58,4.0554]
[1737789495442,163.26303864,246.63,246.58,4.0554]
[1737789496163,163.26303864,246.63,246.58,14.194]
[1737789496365,163.26303864,246.63,246.59,23.776884]
[1737789496559,59.2082,246.63,246.62,43.776884]
[1737789496752,38.9152,246.63,246.62,43.776884]
[1737789497073,18.6222,246.63,246.62,43.776884]
[1737789497242,18.6222,246.63,246.62,47.831684]
[1737789498281,0.0001,246.63,246.62,47.831684]
[1737789501454,0.0001,246.63,246.62,49.49679633]
[1737789504893,0.063,246.74,246.7,20.0]
[1737789505175,0.063,246.74,246.71,23.776884]
[1737789505677,0.063,246.74,246.73,23.776884]
[1737789507168,0.063,246.74,246.72,4.0531]
[1737789508178,0.063,246.74,246.68,23.776884]
[1737789508780,0.063,246.74,246.67,43.776884]
[1737789509679,0.063,246.74,246.68,4.0538]
[1737789518388,0.063,246.74,246.69,23.776884]
[1737789519787,0.063,246.74,246.68,23.776884]
[1737789519989,0.063,246.74,246.68,27.830684]
[1737789520285,81.4,246.73,246.68,27.830684]
[1737789520981,81.4,246.73,246.68,27.860684]
[1737789524116,0.063,246.74,246.68,27.860684]
[1737789529314,0.063,246.74,246.7,23.776884]
[1737789530283,0.063,246.74,246.69,4.0536]
[1737789530998,0.063,246.74,246.7,23.776884]
[1737789531290,0.063,246.74,246.69,24.0536]
[1737789531503,0.063,246.74,246.7,23.776884]
[1737789533403,0.063,246.74,246.72,23.776884]
[1737789534777,0.063,246.74,246.7,27.830384]
[1737789540519,0.063,246.74,246.73,43.776884]
[1737789542103,0.063,246.74,246.73,47.829884]
[1737789547511,0.063,246.78,246.74,23.776884]
[1737789547705,0.063,246.78,246.77,43.776884]
[1737789549225,0.063,246.78,246.77,47.829184]
[1737789552120,0.063,246.78,246.77,43.776884]
[1737789552498,0.063,246.78,246.74,4.0527]
[1737789552697,0.063,246.78,246.73,0.03]
[1737789552924,31.4,246.77,246.73,0.03]
[1737789556109,0.063,246.78,246.73,0.03]
[1737789556110,39.90323278,246.76,246.73,0.03]
[1737789557723,39.498,246.76,246.73,0.03]
[1737789560019,33.0382,246.76,246.73,0.03]
[1737789560204,31.4,246.76,246.73,0.03]
[1737789561429,31.4,246.76,246.75,20.0]
[1737789561623,31.4,246.76,246.75,43.776884]
[1737789561813,0.063,246.78,246.76,23.776884]
[1737789562012,0.063,246.78,246.77,43.776884]
[1737789563731,0.063,246.78,246.77,47.829184]
[1737789566834,0.063,246.78,246.77,43.776884]
[1737789568036,0.063,246.78,246.77,23.776884]
[1737789579445,0.063,246.78,246.73,0.03]
[1737789580950,0.063,246.78,246.73,27.859884]
[1737789588163,0.063,246.78,246.73,4.083]
[1737789588455,31.4,246.77,246.73,0.03]
[1737789588941,31.4,246.76,246.73,0.03]
[1737789589144,31.80523278,246.75,246.73,0.03]
[1737789590234,31.4,246.75,246.73,0.03]
[1737789594366,31.4,246.74,246.73,0.03]
[1737789595359,6.76923278,246.78,246.73,0.03]
[1737789595544,9.64923278,246.78,246.73,0.03]
[1737789602267,0.46823278,246.78,246.73,0.03]
[1737789609050,4.52043278,246.78,246.73,0.03]
[1737789609779,20.0,246.76,246.73,0.03]
[1737789609980,1.0,246.74,246.73,0.03]
[1737789610149,8.5973,246.74,246.73,0.03]
[1737789610870,8.00253278,246.74,246.73,0.03]
[1737789611391,13.05533278,246.74,246.73,0.03]
[1737789611585,12.05533278,246.74,246.73,0.03]
[1737789614389,0.40523278,246.74,246.73,0.03]
[1737789614586,20.0,246.77,246.73,0.03]
[1737789614587,0.40523278,246.75,246.73,0.03]
[1737789614789,2.88,246.74,246.73,0.03]
[1737789616595,3.28523278,246.74,246.73,0.03]
[1737789618095,4.28523278,246.74,246.73,0.03]
[1737789619897,47.80441678,246.74,246.73,0.0001]
[1737789620192,1.0,246.69,246.68,0.03]
[1737789620506,13.56523278,246.69,246.68,0.03]
[1737789621066,22.0,246.66,246.54,1.6166]
[1737789621273,1.0,246.64,246.52,4.0563]
[1737789621472,20.0,246.6,246.42,5.6632]
[1737789621732,4.0554,246.58,246.42,5.6632]
[1737789621875,0.40523278,246.57,246.42,5.6632]
[1737789622075,0.40523278,246.57,246.45,20.0]
[1737789622480,0.40523278,246.57,246.42,15.8084]
[1737789622988,0.40523278,246.57,246.42,5.6632]
[1737789623193,1.0,246.56,246.42,5.6632]
[1737789623396,0.40523278,246.55,246.42,5.6632]
[1737789623901,86.4562,246.54,246.42,5.6632]
[1737789624103,82.4,246.53,246.42,5.663]
[1737789624408,81.4,246.53,246.45,20.0]
[1737789624891,81.4,246.53,246.46,23.776884]
[1737789625084,81.4,246.53,246.45,20.0]
[1737789625283,81.4,246.53,246.42,15.8082]
[1737789625527,81.4,246.53,246.43,23.776884]
[1737789626007,81.4,246.52,246.45,23.776884]
[1737789626508,81.4,246.52,246.47,20.0]
[1737789627286,81.4,246.52,246.48,23.776884]
[1737789628215,81.4,246.52,246.49,4.0569]
[1737789630119,81.4,246.52,246.5,23.776884]
[1737789632229,81.4,246.52,246.48,4.0571]
[1737789632721,81.4,246.52,246.51,43.776884]
[1737789633247,81.4,246.62,246.52,25.381984]
[1737789633390,81.4,246.61,246.52,25.381984]
[1737789633707,81.4,246.61,246.56,23.776884]
[1737789634502,81.4,246.61,246.57,4.0556]
[1737789635026,81.4,246.68,246.6,20.0]
[1737789635328,81.4,246.67,246.62,23.776884]
[1737789636124,81.4,246.67,246.58,10.1386]
[1737789636423,81.4,246.67,246.6,20.0]
[1737789636622,81.4,246.67,246.61,23.776884]
[1737789637823,81.4,246.67,246.65,23.776884]
[1737789638417,81.4,246.67,246.65,27.830984]
[1737789638926,81.4,246.73,246.65,27.830984]
[1737789639254,81.4,246.72,246.69,23.776884]
[1737789640098,81.4,246.72,246.7,4.0535]
[1737789640539,0.063,246.74,246.73,43.776884]
[1737789641839,0.063,246.74,246.73,47.829884]
[1737789645835,0.01907267,246.78,246.74,23.776884]
[1737789646039,0.01907267,246.78,246.75,4.0526]
[1737789646343,0.01907267,246.78,246.76,23.776884]
[1737789647043,0.01907267,246.78,246.74,23.776884]
[1737789647429,0.01907267,246.78,246.72,20.0]
[1737789648762,0.01907267,246.78,246.73,27.829884]
[1737789658451,0.01907267,246.78,246.72,0.03]
[1737789659265,0.01907267,246.78,246.72,4.083]
[1737789662465,0.01907267,246.78,246.73,23.776884]
[1737789662854,81.4,246.77,246.73,23.776884]
[1737789668669,81.4,246.76,246.73,23.776884]
[1737789670660,81.4,246.76,246.73,23.806884]
[1737789671168,81.4,246.76,246.73,0.03]
[1737789671339,85.4525,246.76,246.73,0.03]
[1737789671539,81.4,246.75,246.73,0.03]
[1737789672861,4.0528,246.74,246.73,0.03]
[1737789674459,81.4,246.75,246.73,0.03]
[1737789674760,4.0525,246.76,246.73,0.03]
[1737789674761,81.4,246.74,246.73,0.03]
[1737789675342,20.0,246.74,246.73,0.03]
[1737789675548,20.40523278,246.74,246.73,0.03]
[1737789677350,1.94723278,246.77,246.73,0.03]
[1737789677967,20.0,246.75,246.73,0.03]
[1737789678248,20.40523278,246.75,246.73,0.03]
[1737789679754,3.28523278,246.75,246.73,0.03]
[1737789679952,23.28523278,246.75,246.73,0.03]
[1737789680645,81.4,246.74,246.73,0.03]
[1737789683851,0.01907267,246.78,246.73,0.03]
[1737789685177,0.01907267,246.78,246.73,23.806884]
[1737789687169,0.01907267,246.78,246.73,30.418384]
[1737789687381,0.01907267,246.78,246.75,23.776884]
[1737789688688,0.01907267,246.78,246.77,43.776884]
[1737789689493,0.01907267,246.78,246.77,47.829184]
[1737789690996,0.01907267,246.78,246.77,23.776884]
[1737789700477,0.06207267,246.8,246.78,23.776884]
[1737789700689,0.063,246.82,246.81,20.0]
[1737789702612,0.063,246.82,246.81,47.828484]
[1737789705392,0.063,246.82,246.78,4.0521]
[1737789706689,0.063,246.82,246.81,20.0]
[1737789712515,0.063,246.82,246.81,43.776884]
[1737789717919,0.063,246.82,246.8,4.0517]
[1737789718099,0.063,246.82,246.81,20.0]
[1737789718294,0.063,246.82,246.78,4.0521]
[1737789718810,0.063,246.82,246.79,23.776884]
[1737789719013,0.063,246.82,246.77,1.6198]
[1737789719214,0.063,246.82,246.77,0.03]
[1737789720205,0.063,246.82,246.77,43.806884]
[1737789721622,0.063,246.82,246.77,127.706884]
[1737789722218,0.063,246.82,246.81,20.0]
[1737789722425,0.063,246.82,246.81,43.776884]
[1737789724929,0.063,246.82,246.81,47.828484]
[1737789731139,0.063,246.88,246.85,20.0]
[1737789731341,0.063,246.99,246.92,20.0]
[1737789731640,0.063,246.99,246.89,24.776884]
[1737789731641,0.063,246.99,246.96,43.776884]
[1737789733048,0.063,246.99,246.96,47.826084]
[1737789735141,0.063,246.99,246.96,43.776884]
[1737789736719,0.063,246.99,246.91,1.5922]
[1737789737146,0.063,246.99,246.95,43.776884]
[1737789739415,0.063,246.99,246.95,47.826184]
[1737789740914,0.063,246.99,246.95,43.776884]
[1737789741119,0.063,246.99,246.91,87.5421]
[1737789741418,0.063,246.99,246.95,23.776884]
[1737789744357,0.063,246.99,246.91,1.5922]
[1737789744550,0.063,246.99,246.89,1.6028551]
[1737789744842,4.1117,246.99,246.9,43.776884]
[1737789745141,85.5117,246.99,246.87,4.0507]
[1737789745515,85.5117,246.99,246.95,20.0]
[1737789745928,85.5117,246.99,246.86,87.55642251]
[1737789746139,4.049,246.97,246.86,87.55642251]
[1737789746345,4.049,246.97,246.89,20.0]
[1737789746537,81.4,246.98,246.94,23.776884]
[1737789746740,4.1118,246.99,246.94,23.776884]
[1737789747135,4.1118,246.99,246.86,88.55642251]
[1737789747136,4.1118,246.99,246.86,87.55642251]
[1737789747440,85.5118,246.99,246.86,87.55642251]
[1737789747660,85.5118,246.99,246.9,43.776884]
[1737789754259,0.063,247.01,246.96,1.0]
[1737789754431,0.063,247.03,247.0,20.0]
[1737789754633,0.063,247.03,247.01,23.776884]
[1737789755159,0.063,247.03,246.97,20.0]
[1737789755330,0.063,247.03,247.01,20.0]
[1737789756960,0.063,247.03,247.02,23.776884]
[1737789768253,0.063,247.06,247.01,4.0483]
[1737789768455,0.063,247.06,247.02,0.12]
[1737789768766,0.063,247.06,247.02,23.776884]
[1737789770173,0.063,247.06,247.02,20.0]
[1737789772278,0.063,247.06,247.02,43.776884]
[1737789776079,0.063,247.06,247.02,47.824984]
[1737789784764,0.063,247.06,246.96,6.47551991]
[1737789784967,0.063,247.06,246.9,1.03]
[1737789784968,4.1107,247.06,246.92,4.0498]
[1737789785281,85.5107,247.06,246.92,4.0498]
[1737789785579,85.5107,247.06,246.91,0.03]
[1737789785580,81.4,247.05,246.91,0.03]
[1737789785759,81.4,247.04,246.91,0.03]
[1737789785964,81.4,247.04,247.02,0.03]
[1737789786281,81.4,247.03,247.02,0.03]
[1737789787085,85.448,247.03,247.02,0.03]
[1737789788473,81.4,247.03,247.02,0.03]
[1737789799409,4.0479,247.04,247.02,0.03]
[1737789805915,1.40523278,247.03,247.02,0.03]
[1737789806098,9.22223278,247.03,247.02,0.03]
[1737789808691,20.0,247.0,246.89,4.0503]
[1737789808886,22.86,247.0,246.89,4.0503]
[1737789809504,81.4,246.99,246.89,4.0503]
[1737789810784,81.4,246.99,246.93,23.776884]
[1737789811008,81.4,246.99,246.93,27.826584]
[1737789811284,81.4,247.05,246.93,27.826584]
[1737789811494,81.4,247.05,246.93,37.950884]
[1737789811695,81.4,247.05,246.93,39.461084]
[1737789811992,81.4,247.05,246.97,23.776884]
[1737789812825,81.4,247.05,246.98,4.0489]
[1737789812989,81.4,247.04,246.98,4.0489]
[1737789813317,81.463,247.04,246.99,23.776884]
[1737789815607,81.463,247.04,246.99,27.825484]
[1737789818121,81.463,247.04,246.99,23.776884]
[1737789819218,81.463,247.04,246.93,1.5102]